Cogmind - Beta 16.1 @@@ ROGUE MODE // 2026.04.11 @ 19:03:09 Player: Maelyn Result: Destroyed by S-10 Pest with Light Assault Rifle Performance ------------- Evolutions (1) 500 Regions Visited (3) 600 Robots Destroyed (33) 165 Value Destroyed (862) 862 Prototype IDs (0) 0 Alien Tech Used (0) 0 Bonus (0) 0 TOTAL SCORE: 2127 Bonus ------- None Cogmind --------- Core Integrity 0/400 Matter 300/300 Energy 100/100 System Corruption 0% Temperature Cool (0) Movement Core (350) Ox6 Location -9/Materials Parts ------- > --- POWER (1) -------- (None) > --- PROPULSION (3) --- (None) > --- UTILITY (3) ------ Large Storage Unit > --- WEAPON (2) ------- (None) > --- INVENTORY (15) --- Improved Flight Unit Improved Flight Unit Improved Flight Unit Medium Storage Unit Large Battery (200) Light Armor Plating Hacking Suite Mining Laser Peak State ------------ > --- POWER ------------ Ion Engine > --- PROPULSION ------- Light Treads Light Treads Light Treads > --- UTILITY ---------- Improved Heat Sink Large Storage Unit Seismic Detector > --- WEAPON ----------- Medium Laser Medium Laser > --- INVENTORY -------- Aluminum Leg Aluminum Leg Aluminum Leg Improved Flight Unit Improved Flight Unit Improved Flight Unit Medium Storage Unit Large Battery Light Armor Plating Hacking Suite Particle Gun Assault Rifle Mining Laser [Rating: 13] Favorites ----------- Power Ion Engine Engine Ion Engine Propulsion Light Treads Treads Light Treads Leg Aluminum Leg Utility Seismic Detector Device Seismic Detector Storage Large Storage Unit Weapon Assault Rifle Energy Gun Medium Laser Ballistic Gun Assault Rifle Build | -11 -10 -10 -9 ------- Run | Yrd Mat Min Mat Slots Evolved 2 | . . . 2 Power . | . . . . Propulsion 1 | . . . 1 Utility 1 | . . . 1 Weapon . | . . . . Parts Attached 20 | 7 5 . 8 Power 2 | 1 1 . . Engine 2 | 1 1 . . Core . | . . . . Reactor . | . . . . Propulsion 8 | 2 2 . 4 Treads 5 | 2 2 . 1 Leg 3 | . . . 3 Wheel . | . . . . Hover . | . . . . Flight . | . . . . Utility 5 | 2 2 . 1 Device 2 | 1 . . 1 Storage 3 | 1 2 . . Processor . | . . . . Hackware . | . . . . Protection . | . . . . Artifact . | . . . . Weapon 5 | 2 . . 3 Energy Gun 3 | . . . 3 Energy Cannon . | . . . . Ballistic Gun 2 | 2 . . . Ballistic Cannon . | . . . . Launcher . | . . . . Special Weapon . | . . . . Impact Weapon . | . . . . Slashing Weapon . | . . . . Piercing Weapon . | . . . . Special Melee Weapon . | . . . . Unidentified Prototypes . | . . . . Parts Lost 15 | . 2 . 13 Power 2 | . 1 . 1 Propulsion 6 | . . . 6 Utility 2 | . . . 2 Weapon 5 | . 1 . 4 Highest Loss Streak 5 | . 1 . 5 To Critical Strikes . | . . . . Average Backups 9 | 3 9 9 11 Power . | . . . . Propulsion 2 | 1 2 2 4 Utility 3 | . 3 4 3 Weapon 3 | . 3 3 2 Tool/Special . | . . . . Unused Backups 10 | . 3 . 7 Power . | . . . . Propulsion 3 | . . . 3 Utility 4 | . 1 . 3 Weapon 3 | . 2 . 1 Tool/Special . | . . . . Average Slot Usage (%) 87 | . 94 85 81 Engine 12 | . 13 14 9 Treads 26 | . 28 28 21 Device 15 | . 14 14 19 Storage 13 | . 14 14 11 Energy Gun 3 | . . . 14 Ballistic Gun 15 | . 23 14 1 Peak Build Rating 13 | 7 8 7 13 Average Rating 8 | 5 7 7 10 On Entrance 5 | . 7 7 7 Avg Prop Armor Cover (%) . | . . . . Naked Turns . | . . . . Heaviest Build 32 | 15 28 28 32 Greatest Support 60 | 40 40 40 60 Greatest Overweight (x) 10 | 3 . . 10 Average Overweight (x) . | . . . . Largest Inventory Capacity 15 | 8 15 15 15 Average Capacity 12 | 7 9 15 15 Most Carried 13 | 5 10 10 13 Average Carried 9 | 3 9 9 11 Final Capacity 15 | 8 15 15 15 Final Carried 10 | 4 10 10 8 Class Distribution -------------------- 86% | Mutant 13% | Scavenger-Mutant Dominant Class ---------------- Mutant | -10/Materials Mutant | -10/Mines Scavenger-Mutant | -9/Materials Resources | -11 -10 -10 -9 ----------- Run | Yrd Mat Min Mat Matter Collected 650 | 161 381 . 108 Remotely . | . . . . Salvage Created 1208 | 43 480 . 685 Parts 67 | 7 40 . 20 Haulers Intercepted 1 | . . . 1 Recyclers Shooed 6 | . . . 6 Parts Field Recycled . | . . . . Retrieved Matter . | . . . . Parts Self-Destructed . | . . . . Prevented . | . . . . Parts Restored . | . . . . Kills | -11 -10 -10 -9 ------- Run | Yrd Mat Min Mat Combat Hostiles Destroyed 23 | . 12 . 11 Guns 21 | . 12 . 9 Classes Destroyed 10 | 1 6 . 3 Builder 1 | . 1 . . Tunneler 2 | 2 . . . Hauler 1 | . . . 1 Recycler 2 | . . . 2 Operator 1 | . 1 . . Watcher 3 | . 3 . . Swarmer 3 | . 3 . . Grunt 16 | . 6 . 10 Sentry 1 | . . . 1 Subdweller 3 | . 3 . . Best Kill Streak 4 | 1 4 . 4 Combat Bots Only 4 | . 3 . 4 Max Kills in Single Turn 1 | 1 1 . 1 Gunslinging . | . . . . Exploded . | . . . . Melee . | . . . . Uniques/NPCs Destroyed . | . . . . Combat | -11 -10 -10 -9 -------- Run | Yrd Mat Min Mat Hostile Shots Fired 248 | . 45 . 203 Missed 66 | . 11 . 55 Hits 182 | . 34 . 148 Projectile 182 | . 34 . 148 Critical Strikes 1 | . . . 1 Damage Taken 1957 | . 458 . 1499 Core 514 | . 109 . 405 Absorbed by Shields . | . . . . Core Remaining (%) 78 | 100 . 56 . Volleys Fired 113 | 4 38 . 71 Largest 2 | 2 2 . 2 Hottest 115 | 40 40 . 115 Shots Fired 200 | 8 71 . 121 Gun 200 | 8 71 . 121 Cannon . | . . . . Launcher . | . . . . Special . | . . . . Kinetic 90 | 8 71 . 11 Thermal 110 | . . . 110 Explosive . | . . . . Electromagnetic . | . . . . Robot Hit Streak 19 | 3 12 . 19 Robot Miss Streak 5 | 2 3 . 5 Penetration Max . | . . . . Secondary Targets 1 | . . . 1 Max Gunslinging Chain 1 | . . . 1 Shots Hit Robots 133 | 6 44 . 83 Core Hits 55 | 2 25 . 28 Critical Kills . | . . . . Critical Parts Destroyed . | . . . . Critical Strikes 9 | . . . 9 Burn 9 | . . . 9 Melee Attacks . | . . . . Impact . | . . . . Slashing . | . . . . Piercing . | . . . . Sneak Attacks . | . . . . Combat Hostiles . | . . . . Follow-up Attacks . | . . . . Damage Inflicted 1818 | 76 581 23 1138 Guns 1779 | 76 575 . 1128 Cannons . | . . . . Explosions . | . . . . Melee . | . . . . Ramming 39 | . 6 23 10 Kinetic 738 | 76 575 . 87 Thermal 1041 | . . . 1041 Explosive . | . . . . Electromagnetic . | . . . . Impact . | . . . . Slashing . | . . . . Piercing . | . . . . Highest Corruption . | . . . . Average Corruption . | . . . . Corruption Purged . | . . . . Corruption Blocked . | . . . . Overload Shots . | . . . . Overflow Damage . | . . . . Projectiles . | . . . . Explosions . | . . . . Melee . | . . . . Knockbacks 1 | . . 1 . Impact 1 | . . 1 . Kinetic . | . . . . Secondary . | . . . . Self-Inflicted Damage . | . . . . Shots . | . . . . Rammed 9 | . 2 2 5 Targets Rammed 10 | . 3 2 5 Kicked . | . . . . Crushed 1 | . 1 . . Highest Temperature 21 | . 2 . 21 Average Temperature 5 | . 2 . 6 Received Heat Transfer 558 | . 102 . 456 Siege Activations . | . . . . Martial Activations . | . . . . Shielding Activations . | . . . . Robots Disrupted . | . . . . Combat Hostiles . | . . . . Robots Corrupted . | . . . . Combat Hostiles . | . . . . Parts Fried . | . . . . Impact Corruptions . | . . . . Robots Melted 2 | . . . 2 Combat Hostiles 2 | . . . 2 Parts Melted 10 | . . . 10 Heat Transferred 3663 | . . . 3663 Parts Sabotaged . | . . . . Parts Stolen . | . . . . Parts Stripped . | . . . . Power Chain Reactions . | . . . . Alert | -11 -10 -10 -9 ------- Run | Yrd Mat Min Mat Maximum Alert Level . | . . . . Low Security (%) 100 | 100 100 100 100 Level 1 . | . . . . Level 2 . | . . . . Level 3 . | . . . . Level 4 . | . . . . Level 5 . | . . . . High Security . | . . . . Max Security . | . . . . Peak Influence 70 | 5 67 . 70 Initial . | . . . . Average 10 | . 11 . 25 Influence Increases 604 | 10 257 . 337 Destroy 0b10 Robot/C 400 | . 180 . 220 Destroy 0b10 Robot/NC 50 | 10 25 . 15 Destroy Leader 78 | . 36 . 42 Destroy Structure 1 | . 1 . . Lose Combat Pursuer 75 | . 15 . 60 Influence Decreases 604 | 10 257 . 337 Time Decay 533 | 10 257 . 266 Lost Part 71 | . . . 71 Squads Dispatched 3 | . 1 . 2 Investigation . | . . . . Extermination . | . . . . Reinforcement 3 | . 1 . 2 Assault . | . . . . Garrison . | . . . . Intercept . | . . . . Searches Triggered . | . . . . Construction Impeded . | . . . . Haulers Reinforced . | . . . . Active Scanning Responses . | . . . . Cargo Convoy Interrupts . | . . . . Stealth | -11 -10 -10 -9 --------- Run | Yrd Mat Min Mat Distress Signals 2 | . . . 2 Communications Jammed . | . . . . Distress Signals . | . . . . Times Spotted 54 | . 18 . 36 Peak Tracking Total 6 | . 3 . 6 Tactical Retreats 4 | . 1 . 3 Traps | -11 -10 -10 -9 ------- Run | Yrd Mat Min Mat Traps Triggered 1 | . . . 1 Indirectly . | . . . . Trap Hack Attempts . | . . . . Triggered . | . . . . Disarmed . | . . . . Reprogrammed . | . . . . Reused . | . . . . Traps Extracted . | . . . . Installed . | . . . . Triggered . | . . . . Machines | -11 -10 -10 -9 ---------- Run | Yrd Mat Min Mat Machines Disabled . | . . . . Max in Single Turn . | . . . . Machines Repaired . | . . . . Machines Dismantled . | . . . . Machines Sabotaged . | . . . . Overloaded Fab Kills . | . . . . Hacking | -11 -10 -10 -9 --------- Run | Yrd Mat Min Mat Machines Accessed . | . . . . Terminals . | . . . . Fabricators . | . . . . Repair Stations . | . . . . Recycling Units . | . . . . Scanalyzers . | . . . . Garrison Access . | . . . . Total Hacks . | . . . . Successful . | . . . . Failed . | . . . . Catastrophic . | . . . . Database Lockouts . | . . . . Manual . | . . . . Terminals . | . . . . Fabricators . | . . . . Repair Stations . | . . . . Recycling Units . | . . . . Scanalyzers . | . . . . Garrison Access . | . . . . Terminal Hacks . | . . . . Fabricator Hacks . | . . . . Repair Station Hacks . | . . . . Recycling Unit Hacks . | . . . . Scanalyzer . | . . . . Garrison Access Hacks . | . . . . Unauthorized Hacks . | . . . . Terminals . | . . . . Fabricators . | . . . . Repair Stations . | . . . . Recycling Units . | . . . . Scanalyzers . | . . . . Garrison Access . | . . . . Data Cores Recovered . | . . . . Used . | . . . . Hacking Detections . | . . . . Full Trace Events . | . . . . Feedback Events . | . . . . Feedback Blocked . | . . . . Robot Schematics Acquired . | . . . . Robots Built . | . . . . Authchips . | . . . . Time . | . . . . Total Robot Build Rating . | . . . . Part Schematics Acquired . | . . . . Parts Built . | . . . . Authchips . | . . . . Time . | . . . . Total Part Build Rating . | . . . . Part Studies Acquired . | . . . . Parts Repaired . | . . . . Time . | . . . . Parts Recycled . | . . . . Recycled Matter . | . . . . Retrieved Matter . | . . . . Retrieved Components . | . . . . Parts Scanalyzed . | . . . . Part Schematics Acquired . | . . . . Parts Damaged . | . . . . Bothacking | -11 -10 -10 -9 ------------ Run | Yrd Mat Min Mat Used RIF Installer . | . . . . Robots Hacked . | . . . . Non-combat . | . . . . Combat . | . . . . Robot Hacks Applied . | . . . . Relay Couplers Released . | . . . . Fabnet Peak Effective % . | . . . . Robots Rewired . | . . . . Allies Hacked . | . . . . Hacks Repelled . | . . . . Allies | -11 -10 -10 -9 -------- Run | Yrd Mat Min Mat Total Allies 1 | . . 1 . Largest Group 1 | . . 1 . Highest-Rated Group 31 | . . 31 . Highest-Rated Ally 31 | . . 31 . Total Orders . | . . . . Ally Attacks . | . . . . Total Damage . | . . . . Kills . | . . . . Allies Corrupted . | . . . . Allies Melted . | . . . . Intel | -11 -10 -10 -9 ------- Run | Yrd Mat Min Mat Active Infowar (turns) 3000 | 21 1292 1047 640 Seismic 3000 | 21 1292 1047 640 Robot Analysis Total . | . . . . Derelict Logs Recovered 1 | . . 1 . Drone Launches . | . . . . Drone Recoveries . | . . . . Exploration | -11 -10 -10 -9 ------------- Run | Yrd Mat Min Mat Turns Passed 3205 | 135 1292 1047 731 Spaces Moved 1711 | 69 702 652 288 Core 20 | 11 . . 9 Treads 1639 | 58 702 652 227 Legs 52 | . . . 52 Wheels . | . . . . Hover . | . . . . Flight . | . . . . Fastest Speed 50 | 50 160 160 120 Average Speed 161 | 155 160 160 170 Slowest Speed 550 | 200 160 160 550 Overloaded Moves . | . . . . Propulsion Burnouts . | . . . . Robots Hopped . | . . . . Potential Cave-ins . | . . . . Cave-ins Triggered . | . . . . Exploration Rate (%) 53 | 5 87 98 23 Regions Visited 3 Branch Regions 1 Pre-discovered Areas 1 | . . 1 . Known Exits Taken . | . . . . Unknown Exits Taken 3 | 1 1 1 . Scrap Searched 1 | . . 1 . Spaces Dug . | . . . . Terrain Destroyed . | . . . . Melee . | . . . . Projectile . | . . . . AOE . | . . . . Terrain Rammed . | . . . . Walls Destroyed . | . . . . Machines Disabled . | . . . . Actions | -11 -10 -10 -9 --------- Run | Yrd Mat Min Mat Total 1949 | 87 802 655 405 Wait 67 | . 40 . 27 Move 1708 | 68 701 651 288 Hop . | . . . . Pick Up 23 | 8 9 1 5 Fast Attach 4 | 3 . . 1 Attach 12 | 4 1 . 7 Detach . | . . . . Swap 5 | . 4 . 1 Drop 7 | . 6 1 . Fire 113 | 4 38 . 71 Melee . | . . . . Ram . | . . . . Kick . | . . . . Crush 10 | . 3 2 5 Escape Stasis . | . . . . Rewire . | . . . . Trap . | . . . . Miscellaneous . | . . . . Route ------- -11/Scrapyard -10/Materials (discovered 5 exits: [*Mat x3] / [*Min] / [*Sub]) -10/Mines (discovered 3 exits: [*Mat x2] / [*Sub]) -9/Materials History --------- Turn | Location | Event 21 | -11/Scrapyard | Discovered new exit (range 15) 136 | -11/Scrapyard | Entered Materials 311 | -10/Materials | Build established: Mutant 375 | -10/Materials | Discovered new exit (range 10) 479 | -10/Materials | Discovered new exit (range 12) 481 | -10/Materials | Discovered new exit (range 14) 765 | -10/Materials | Discovered new exit (range 7) 836 | -10/Materials | Derelicts attacked the area 1308 | -10/Materials | Discovered new exit (range 10) 1428 | -10/Materials | Entered Mines 1492 | -10/Mines | Discovered new exit (range 5) 1497 | -10/Mines | Received a Mining Laser from a helpful Derelict 1633 | -10/Mines | Learned location of Zion (-7) 1705 | -10/Mines | Discovered new exit (range 14) 2363 | -10/Mines | Discovered new exit (range 7) 2475 | -10/Mines | Entered Materials 2475 | -9/Materials | Evolved 2 slots: Propulsion x1, Utility x1 2990 | -9/Materials | Build established: Scavenger-Mutant 3131 | -9/Materials | Core integrity fell below 50% 3146 | -9/Materials | Lost 5 parts (1p1n1u2w) 3193 | -9/Materials | Core integrity fell below 20% 3206 | -9/Materials | Destroyed by S-10 Pest with Light Assault Rifle Last Messages --------------- 03041_ R-06 Scavenger collects Sml. Laser. 03043_ U-05 Engineer lays Concrete. 03045_ R-06 Scavenger collects Aluminum Leg. 03094_ Lgt. Treads destroyed. 03100_ Assault Rifle destroyed. 03100_ Ion Engine destroyed. 03108_ S-10 Pest destroyed. 03109_ K-01 Serf collects debris. 03110_ Particle Gun destroyed. 03110_ K-01 Serf collects debris. 03115_ Seismic Detector destroyed. 03115_ K-01 Serf cleans the Terminal. 03117_ Acquired 4 matter. 03137_ Acquired 7 matter. 03139_ Acquired 14 matter. 03151_ S-10 Pest destroyed. 03162_ Critical hit (Burn: +37). 03165_ Aluminum Leg destroyed. 03174_ Imp. Heat Sink destroyed. 03176_ Aluminum Leg destroyed. Map ----- +----------------------------------------------------+ | " + % #?????????????????????????? | | ##### #########/## #?????????????????????????? | | #???# ## % # #?????????????????????????? | | #???# ## """ # #?????????????????????????? | | ###???# ## """ # ##????????????????????????? | | ####??# ## """ %+% +????????????????????????? | | #??# ## "" # ##????????????????????????? | | #### ## T" # #?????????????????????????? | | + ## "" # #?????????????????????????? | | # ## = # #?????????????????????????? | | # ######/##### #?????????????????????????? | | + %%% % #?????????????????????????? | | ########## % ##########????????????????? | | #????????# ?????????? | | ###############+######### ######????????????????? | | % # #???# #?????????????????????? | | # "" #???# #?????????????????????? | | # %""S #???# #?????????????????????? | | """ """ %+ "" #???# g#?????????????????????? | | """ """ # #???#ss#?????????????????????? | | """ """ # #???# #?????????????????????? | | ########???# #?????????????????????? | | #??????????# #?????????????????????? | | #### #??????????# #?????????????????????? | | ???# #??????????# #?????????????????????? | | ???# #??????????#@ #?????????????????????? | | ???#+##### #??????????# #?????????????????????? | | ???# ## #??????????# #?????????????????????? | | ???# ## #??????????# #?????????????????????? | | ???# = ######??????????+ ?????????????????????? | | ???# #???????????????# ?????????????????????? | | ???# #???????????????#+#+#????????????????????? | | ???# "" #????????????????????????????????????????? | | ???# "T #????????????????????????????????????????? | | ???# "" #????????????????????????????????????????? | | ???# #????????????????????????????????????????? | | ???######????????????????????????????????????????? | | ?????????????????????????????????????????????????? | | ?????????????????????????????????????????????????? | | | | | | | | | | | | | | | | | | | | | | | +----------------------------------------------------+ Best States ------------- Heat Dissipation 42 Energy Generation 10 Energy Capacity 250 Matter Stores 300 Matter Capacity 300 Sight Range 16 Terrain Scan Density 10 Evasion (%) 55 Recoil Reduction 3 Item Schematics ----------------- None Robot Schematics ------------------ None Fabricated ------------ Nothing Repaired ---------- Nothing Studied --------- None Alien Tech Used ----------------- None Achievements -------------- None Challenges ------------ None Game ------ Seed SmartSmartPlatform Manual? 0 Play Time 00:32:24 Cumulative 38.9 hours Start 2026.04.11 @ 18:31:57 End 2026.04.11 @ 19:03:09 Sessions 1 Manual Loads 0 Difficulty Rogue Special Mode None Game No. 97 Rogue 97 Adventurer 0 Explorer 0 Win Type - Total 0 Types 0/0/0/0/0/0/0/0/0/0 Lore% 14 Gallery% 25 Achievement% 17 Wizard Run 0 Options --------- Layout 0 ASCII 1 Keyboard 1 Movement Vi Keybinds 0 Fullscreen 2 Font 18/T_Terminus Map View 76x50 Zoom Use 5% Tactical HUD 1 Map Filters NONE Filters NONE Steam 1 RUN: f41d6aa2-aee0-4e1d-8b95-2fe35d129173